[Event "Festival Groningen-A 2024"]
[Site "Groningen"]
[Date "2024.12.28"]
[Round "7.1"]
[White "Narayanan S L"]
[Black "Poetsch, Hagen"]
[Result "1-0"]
[ECO "A29"]
[WhiteElo "2647"]
[BlackElo "2491"]
[Annotator "TA"]
[PlyCount "149"]
[EventDate "2024.12.21"]
[EventType "swiss"]
[EventCountry "NED"]
[SourceTitle "playchess.com"]
[Source "ChessBase"]
[SourceQuality "1"]
[TimeControl "40/5400+30:1800+30"]

{[%evp 16,149,7,10,33,30,67,63,56,50,65,59,64,64,65,62,72,77,86,97,97,82,89,88,104,100,102,116,112,108,110,100,118,107,125,112,110,111,108,110,108,108,108,105,105,106,106,105,105,105,109,105,117,108,109,113,121,121,121,112,116,0,121,106,121,121,185,108,109,102,170,110,123,116,205,168,142,0,167,110,135,68,67,65,55,0,31,31,83,83,83,83,83,24,24,24,24,24,31,31,31,31,195,187,187,184,187,187,187,187,184,181,252,220,220,220,220,220,220,220,220,220,310,310,29957,29957,29960,29961,29961,29961,29962,29963,29955,12847,5804,5544]} 1. c4 {[%emt 0:00:03]} e5 {[%emt 0:00:13]} 2. g3 {[%emt 0:00:09]} Nf6 {[%emt 0:01:37]} 3. Bg2 {[%emt 0:00:04]} d5 {[%emt 0:00:05]} 4. cxd5 {[%emt 0:00:05]} Nxd5 {[%emt 0:00:04]} 5. Nc3 {[%emt 0:00:05]} Nb6 {[%emt 0:00:03]} 6. Nf3 {[%emt 0:00:11]} Nc6 {[%emt 0:00:04]} 7. O-O {[%emt 0:00:07]} Be7 {[%emt 0:00:05]} 8. Rb1 {[%emt 0:00:04]} O-O {[%emt 0:11:42] [#]} 9. b4 $1 {[%emt 0:01:05][%cal Bb2b4,Bb4b5][%mdl 32]} Bf5 {[%emt 0:01:46] [#]} (9... Bxb4 10. Nxe5 Qd4 11. Nxc6 bxc6 12. Bb2 $16 (12. Bxc6 Rb8 $16)) (9... a6 10. a3) 10. b5 $1 {[%emt 0:01:09]} Nd4 {[%emt 0:02:00]} (10... Na5 11. d3) 11. d3 {[%emt 0:00:22]} Nxf3+ {[%emt 0:18:20] White is slightly better.} 12. Bxf3 {[%emt 0:00:17]} Qc8 {[%emt 0:00:34]} 13. a4 {[%emt 0:02:22]} a5 {[%emt 0:00:35]} 14. bxa6 {[%emt 0:03:30]} Rxa6 {[%emt 0:00:11]} 15. Be3 {[%emt 0:06:36]} Bg4 {[%emt 0:06:32]} 16. Bh1 {[%emt 0:10:04]} Rd8 {[%emt 0:13:42]} 17. Qc2 {[%emt 0:00:35]} Be6 {[%emt 0:02:14]} 18. Qb2 {[%emt 0:15:29]} f6 {[%emt 0:14:33]} 19. Rfc1 {[%emt 0:03:01][%cal Oa4a5]} Qb8 {[%emt 0:03:37] [#]} 20. a5 $1 {[%emt 0:07:08][%mdl 512]} Rxa5 {[%emt 0:00:07]} 21. Bxb6 {[%emt 0:00:03]} cxb6 {[%emt 0:00:15]} 22. Qxb6 {[%emt 0:00:08]} Ra6 {[%emt 0:00:11]} 23. Qb5 {[%emt 0:04:06]} Ba3 {[%emt 0:07:54]} 24. Bxb7 {[%emt 0:02:52]} Ra7 {[%emt 0:03:24]} 25. Rc2 {[%emt 0:06:15]} Qc7 {[%emt 0:01:06]} 26. Qb6 {[%emt 0:03:45]} Qxb6 {[%emt 0:00:19]} 27. Rxb6 {[%emt 0:00:04][%cal Oc3b5]} Rb8 {[%emt 0:04:08]} 28. Rxe6 {[%emt 0:00:16]} Raxb7 {[%emt 0:00:28]} 29. Ne4 {[%emt 0:00:57]} Rb2 {[%emt 0:00:55]} 30. Rxb2 {[%emt 0:03:50]} Rxb2 $16 {[%emt 0:00:08][%mdl 4096] Endgame. KRB-KRN} 31. Kf1 {[%emt 0:00:09]} Rb1+ {[%emt 0:01:04]} 32. Kg2 {[%emt 0:00:05]} Rb2 {[%emt 0:00:06]} 33. Kf3 {[%emt 0:00:11]} Kf7 {[%emt 0:01:43]} 34. Ra6 {[%emt 0:00:08]} Be7 {[%emt 0:00:07]} 35. g4 {[%emt 0:00:19]} Rb4 {[%emt 0:01:29]} 36. h3 {[%emt 0:00:58]} g6 {[%emt 0:02:32]} 37. Ra7 {[%emt 0:01:06]} Ke6 {[%emt 0:00:08]} 38. Ra6+ {[%emt 0:10:07]} Kf7 {[%emt 0:00:10]} 39. Rc6 {[%emt 0:01:09]} Rd4 {[%emt 0:00:53]} 40. Nd2 {[%emt 0:01:42]} h5 {[%emt 0:00:49]} (40... Rd6 $16 {was called for.} 41. Rc7 (41. Rxd6 Bxd6 42. Nc4 Bb8 $16) 41... Rd4) 41. gxh5 {[%emt 0:32:57]} ({White should play} 41. g5 $1 $18) 41... gxh5 {[%emt 0:30:45]} 42. Nc4 {[%emt 0:00:47]} Rd8 {[%emt 0:00:00]} (42... Bf8 $16 43. Rc7+ Kg6) 43. Ne3 {[%emt 0:00:00]} (43. Rc7 $18 {And now Na5 would win.} Ke6 44. Ne3) 43... Kg6 {[%emt 0:00:00]} 44. Rc4 {[%emt 0:00:00]} f5 {[%emt 0:00:00]} (44... Bf8 $16 {was worth a try.} 45. Ke4 Rb8) 45. Rc7 {[%emt 0:00:00]} Bf6 {[%emt 0:00:00]} 46. Rc4 {[%emt 0:00:00] White is more active.} (46. Rc6 $16) 46... Rd7 $2 {[%emt 0:00:00]} (46... Be7 $1 $11 {and Black is okay.}) 47. Nf1 {[%emt 0:00:00]} (47. Rc6 $18) 47... Ra7 {[%emt 0:00:00]} 48. Ng3 {[%emt 0:00:00]} (48. Rc6 $16) 48... Ra3 $14 {[%emt 0:00:00]} 49. Kg2 {[%emt 0:00:00]} Ra2 {[%emt 0:00:00]} 50. Kf3 {[%emt 0:00:00]} Ra3 $1 {[%emt 0:00:00]} 51. Rc6 {[%emt 0:00:00][%cal Og3h5] Nxh5! is the strong threat.} h4 {[%emt 0:00:00] [#]} ({Better is} 51... e4+ $14 52. Ke3 h4) 52. Nh5 $1 $16 {[%emt 0:00:00]} Kxh5 {[%emt 0:00:00]} 53. Rxf6 {[%emt 0:00:00] KR-KR} Kg5 {[%emt 0:00:00]} 54. Rf8 {[%emt 0:00:00]} ({White should try} 54. Rd6 $16) 54... e4+ $11 {[%emt 0:05:54]} 55. Ke3 {[%emt 0:00:00]} exd3 {[%emt 0:00:03]} 56. exd3 {[%emt 0:00:00]} Ra4 {[%emt 0:00:39]} 57. Rg8+ {[%emt 0:00:00]} Kf6 {[%emt 0:00:07]} 58. Rh8 {[%emt 0:00:00]} f4+ $2 {[%emt 0:01:39] Loses the game.} (58... Kg5 $14) 59. Kf3 $18 {[%emt 0:00:00]} Rd4 {[%emt 0:00:18]} 60. Ke2 {[%emt 0:00:00]} (60. Rxh4 Kf5 $11) 60... Ra4 {[%emt 0:00:37]} 61. Rc8 {[%emt 0:00:00]} (61. Rxh4 f3+ 62. Kxf3 Rxh4 $19) 61... Ra2+ {[%emt 0:02:45]} 62. Kf3 {[%emt 0:00:00]} Rd2 {[%emt 0:00:07]} 63. Rd8 {[%emt 0:00:00]} (63. Kxf4 Rxd3 64. Kg4 Rd4+ 65. f4 Rd6 $14) 63... Kf5 {[%emt 0:00:34]} (63... Ke5 $142 64. d4+ Kf5) 64. Rd4 {[%emt 0:00:00]} Ke5 {[%emt 0:00:17]} 65. Re4+ {[%emt 0:00:00]} ({Not} 65. Rxf4 Rxd3+ 66. Kg4 Rxh3 $11) 65... Kd5 {[%emt 0:00:17]} 66. Rxf4 {[%emt 0:00:00]} ({Don't play} 66. Kxf4 $6 Rxd3 67. Re3 Rd2 $16) 66... Rxd3+ {[%emt 0:00:10]} 67. Kg4 {[%emt 0:00:00]} Ke5 {[%emt 0:00:37][%cal Od3h3]} 68. Rf8 {[%emt 0:00:00]} Rd1 {[%emt 0:00:29]} (68... Rd4+ $142 69. Kg5 Ke6 70. Rf6+ Ke7) 69. Kxh4 {[%emt 0:00:00] White wants to mate with Kh5.} Rg1 $2 {[%emt 0:00:50]} (69... Ke6 $18 70. Kg3 Rg1+ 71. Kf3 Ke7) 70. Kh5 {[%emt 0:00:00]} Ke6 {[%emt 0:02:06]} 71. h4 {[%emt 0:00:00]} Ke7 {[%emt 0:00:04] [#]} 72. Rf4 $1 {[%emt 0:00:00]} Rg8 {[%emt 0:00:11] [#]} 73. Kh6 $1 {[%emt 0:00:00]} Rh8+ {[%emt 0:00:17]} 74. Kg7 {[%emt 0:00:00]} Rh5 {[%emt 0:00:42]} 75. Re4+ {[%emt 0:00:00] Weighted Error Value: White=0.16 (very precise) /Black=0.21 (precise) .  Loses game:     	---       	Black=2      Mistake:       	White=6     	Black=7      Inaccurate:     	---       	Black=1      OK:         	White=30    	Black=21     Best:        	White=5     	Black=8      Strong:       	---       	Black=1      Brilliant:      	White=1     	---} 1-0

[Event "Festival Groningen-A 2024"]
[Site "Groningen"]
[Date "2024.12.28"]
[Round "7.2"]
[White "De Winter, Arthur"]
[Black "Schoppen, Casper"]
[Result "1/2-1/2"]
[ECO "E04"]
[WhiteElo "2446"]
[BlackElo "2539"]
[Annotator "TA"]
[PlyCount "121"]
[EventDate "2024.12.21"]
[EventType "swiss"]
[EventCountry "NED"]
[SourceTitle "playchess.com"]
[Source "ChessBase"]
[SourceQuality "1"]
[TimeControl "40/5400+30:1800+30"]

{[%evp 38,121,123,122,122,115,128,130,142,150,162,151,218,216,219,219,223,216,218,218,221,215,267,267,247,258,259,260,254,260,252,260,260,260,260,267,275,266,312,292,448,87,99,34,43,46,83,0,0,0,62,0,1,0,0,0,0,0,0,0,0,0,0,0,0,0,0,0,0,0,0,0,0,0,0,0,0,0,0,0,0,0,0,0,0,0]} 1. d4 {[%emt 0:00:04]} Nf6 {[%emt 0:00:08]} 2. c4 {[%emt 0:00:05]} e6 {[%emt 0:00:24]} 3. g3 {[%emt 0:00:07]} d5 {[%emt 0:00:25]} 4. Nf3 {[%emt 0:00:09]} dxc4 {[%emt 0:00:20]} 5. Bg2 {[%emt 0:00:06]} Bb4+ {[%emt 0:00:19]} 6. Bd2 {[%emt 0:00:10]} c5 {[%emt 0:00:10]} 7. Qc1 {[%emt 0:05:49]} Bxd2+ {[%emt 0:02:58]} 8. Nbxd2 {[%emt 0:00:10]} cxd4 {[%emt 0:05:25]} 9. Nxc4 {[%emt 0:00:15]} Nc6 {[%emt 0:03:29]} 10. O-O {[%emt 0:00:18]} O-O {[%emt 0:04:05]} 11. Rd1 {[%emt 0:00:29]} Re8 {[%emt 0:02:10]} 12. Nfe5 {[%emt 0:11:59]} Nxe5 {[%emt 0:07:07]} 13. Nxe5 {[%emt 0:00:06]} Nd5 {[%emt 0:04:35]} 14. Rxd4 {[%emt 0:05:55]} Qf6 {[%emt 0:00:39]} 15. f4 {[%emt 0:01:26]} Qe7 {[%emt 0:16:22]} 16. Qd2 {[%emt 0:10:26]} Nb6 {[%emt 0:03:47]} 17. Rc1 {[%emt 0:12:03]} f6 {[%emt 0:03:20]} 18. Nc4 {[%emt 0:07:19]} e5 {[%emt 0:06:27]} 19. fxe5 {[%emt 0:05:33]} fxe5 {[%emt 0:00:30]} 20. Nxb6 {[%emt 0:01:18]} axb6 {[%emt 0:00:09]} 21. Rd6 {[%emt 0:03:51]} Kh8 {[%emt 0:04:33]} 22. a3 {[%emt 0:01:29]} (22. Rxb6 Rxa2 23. Qc3 Ra8) 22... e4 {[%emt 0:05:11]} 23. Rxb6 {[%emt 0:00:37]} Bg4 {[%emt 0:03:14]} 24. Qe3 {[%emt 0:00:55]} Rac8 {[%emt 0:00:33]} (24... Rad8 $16 {was necessary.} 25. h3 Bh5) 25. Rxc8 $18 {[%emt 0:03:19]} Rxc8 {[%emt 0:00:16] [#]} 26. Rb4 $1 {[%emt 0:00:56]} (26. Qxe4 $2 Qc5+ 27. e3 Qxb6 $19) (26. Bxe4 $2 Re8 (26... Bf5 27. Rxb7 Qxe4 28. Qxe4 $17) 27. Rb3 (27. Rxb7 $2 Qxb7 28. Bxb7 Rxe3 $19) (27. Rb4 $2 Bf5 $19) 27... Qxe4 28. Qxe4 Rxe4 $19) 26... Bf5 {[%emt 0:00:24]} 27. h3 {[%emt 0:00:52]} (27. Bxe4 $2 Re8 28. Rd4 Bxe4 $19) 27... h6 {[%emt 0:00:58]} 28. Kh2 {[%emt 0:01:10]} (28. Bxe4 $2 Re8 (28... Bxh3 29. Rxb7 Bd7 30. Kf2 $16) 29. h4 Bxe4 $19) 28... Rd8 {[%emt 0:10:39]} 29. Rb5 {[%emt 0:03:18]} (29. Bxe4 $2 Re8 30. Rd4 Bxe4 $19) 29... Bg6 {[%emt 0:02:13]} 30. Qb6 {[%emt 0:05:33]} Kh7 {[%emt 0:03:38]} 31. Qxb7 {[%emt 0:00:37]} Qe8 {[%emt 0:00:32]} 32. Qb6 {[%emt 0:03:05]} Rd2 {[%emt 0:01:58]} 33. Qe3 $1 {[%emt 0:00:24]} Rd3 {[%emt 0:01:17]} 34. exd3 {[%emt 0:01:03]} Qxb5 {[%emt 0:00:05]} 35. dxe4 {[%emt 0:00:19]} Qxb2 {[%emt 0:00:05]} 36. h4 {[%emt 0:13:03]} Be8 {[%emt 0:00:33]} 37. Qf3 {[%emt 0:00:40]} Bd7 {[%emt 0:02:28]} 38. Qf7 {[%emt 0:01:21]} Bg4 {[%emt 0:00:51]} (38... Bc6 $142 39. Qf5+ g6 40. Qf7+ Qg7 41. Qxg7+ Kxg7) 39. h5 $2 {[%emt 0:00:33]} (39. a4 $18 {and White stays clearly on top.}) 39... Qe2 $16 {[%emt 0:00:57] [#]} 40. e5 {[%emt 0:01:22]} ({White should play} 40. a4 $1 $16) 40... Bxh5 $14 {[%emt 0:00:28]} 41. Qd5 {[%emt 0:02:45]} Bg6 {[%emt 0:02:40]} 42. Qd4 {[%emt 0:06:25]} (42. e6 $16) 42... Bd3 $11 {[%emt 0:05:50]} 43. g4 {[%emt 0:02:32]} Bc2 {[%emt 0:02:08]} (43... h5 $11) 44. Kh3 {[%emt 0:06:25]} (44. Kg3 $1 $14) 44... Kh8 $1 $11 {[%emt 0:04:35]} 45. Qc3 {[%emt 0:05:48]} Kh7 {[%emt 0:01:20]} 46. Kg3 {[%emt 0:00:26]} Be4 {[%emt 0:02:32]} 47. Bxe4+ {[%emt 0:00:31]} Qxe4 {[%emt 0:00:06]} 48. Qc5 {[%emt 0:01:24]} Qd3+ {[%emt 0:00:48]} 49. Kf2 {[%emt 0:00:30]} Qd2+ {[%emt 0:05:07]} 50. Kf3 {[%emt 0:00:08]} Qd1+ {[%emt 0:00:11]} 51. Kf4 {[%emt 0:00:46]} g5+ {[%emt 0:00:31]} 52. Kf5 {[%emt 0:03:40]} Qf3+ {[%emt 0:00:21]} 53. Ke6 {[%emt 0:00:03]} Qxg4+ {[%emt 0:00:06]} 54. Ke7 {[%emt 0:00:39]} Qf5 {[%emt 0:01:54]} 55. Qc7 {[%emt 0:04:02]} g4 {[%emt 0:02:58]} 56. e6 {[%emt 0:00:04]} Kg6 {[%emt 0:00:34]} 57. Qb8 {[%emt 0:01:09]} Kg7 {[%emt 0:01:35]} 58. Qb2+ {[%emt 0:00:17]} Kg6 {[%emt 0:00:16]} 59. Qb8 {[%emt 0:00:18]} Kg7 {[%emt 0:00:08]} 60. Qb2+ {[%emt 0:00:59]} Kg6 {[%emt 0:00:07]} 61. Qb8 {[%emt 0:00:37]} 1/2-1/2

[Event "Festival Groningen-A 2024"]
[Site "Groningen"]
[Date "2024.12.28"]
[Round "7.3"]
[White "Van Foreest, Machteld"]
[Black "Beerdsen, Thomas"]
[Result "1/2-1/2"]
[ECO "C47"]
[WhiteElo "2309"]
[BlackElo "2502"]
[Annotator "RC"]
[PlyCount "44"]
[EventDate "2024.12.21"]
[EventType "swiss"]
[EventCountry "NED"]
[SourceTitle "playchess.com"]
[Source "ChessBase"]
[SourceQuality "1"]
[TimeControl "40/5400+30:1800+30"]

1. e4 {[%emt 0:08:00]} e5 {[%emt 0:00:08]} 2. Nf3 {[%emt 0:00:33]} Nc6 {[%emt 0:00:08]} 3. Nc3 {[%emt 0:00:12]} Nf6 {[%emt 0:00:24]} 4. h3 {[%emt 0:00:38]} Bb4 {[%emt 0:01:05]} 5. Nd5 {[%emt 0:00:06]} Bd6 {[%emt 0:01:20]} 6. d3 {[%emt 0:02:32]} h6 {[%emt 0:10:58]} 7. Be2 {[%emt 0:04:50]} Nxd5 {[%emt 0:03:44]} 8. exd5 {[%emt 0:00:07]} Ne7 {[%emt 0:00:19]} 9. d4 {[%emt 0:13:28]} e4 {[%emt 0:06:45]} 10. Ne5 {[%emt 0:00:44]} Nxd5 {[%emt 0:08:27]} 11. Bc4 {[%emt 0:02:08]} Bxe5 {[%emt 0:19:01]} 12. Bxd5 {[%emt 0:10:48]} Bf6 {[%emt 0:00:53]} 13. Bxe4 {[%emt 0:01:16]} d5 {[%emt 0:01:54]} 14. Bf3 {[%emt 0:00:39]} Qe7+ {[%emt 0:08:54]} 15. Qe2 {[%emt 0:03:48]} Be6 {[%emt 0:03:02]} 16. Be3 {[%emt 0:00:13]} O-O-O {[%emt 0:01:24]} 17. O-O-O {[%emt 0:01:15]} Rd6 {[%emt 0:01:31]} 18. Rd3 {[%emt 0:12:58]} Ra6 {[%emt 0:02:21]} 19. Kb1 {[%emt 0:00:59]} Rd8 {[%emt 0:03:07]} 20. Rb3 {[%emt 0:02:39]} Rdd6 {[%emt 0:01:06]} 21. Rd1 {[%emt 0:07:07]} Rdc6 {[%emt 0:10:10]} 22. Rdd3 {[%emt 0:00:44]} Kb8 {[%emt 0:02:40]} 1/2-1/2

[Event "Festival Groningen-A 2024"]
[Site "Groningen"]
[Date "2024.12.28"]
[Round "7.4"]
[White "Maatman, Nick"]
[Black "Pham, Khoi"]
[Result "1/2-1/2"]
[ECO "D31"]
[WhiteElo "2375"]
[BlackElo "2285"]
[Annotator "TA"]
[PlyCount "40"]
[EventDate "2024.12.21"]
[EventType "swiss"]
[EventCountry "NED"]
[SourceTitle "playchess.com"]
[Source "ChessBase"]
[SourceQuality "1"]
[TimeControl "40/5400+30:1800+30"]

{[%evp 17,40,2,6,14,6,0,0,0,0,0,0,0,0,0,0,0,0,0,0,0,0,0,0,0,0]} 1. c4 {[%emt 0:10:20]} e6 {[%emt 0:00:07]} 2. Nc3 {[%emt 0:00:06]} d5 {[%emt 0:00:11]} 3. d4 {[%emt 0:00:04]} c6 {[%emt 0:00:16]} 4. e4 {[%emt 0:15:33]} dxe4 {[%emt 0:00:20]} 5. Nxe4 {[%emt 0:00:03]} Bb4+ {[%emt 0:00:07]} 6. Bd2 {[%emt 0:00:02][%cal Bc1d2,Bd2b4,Bb4f8,Bf8g7,Bg7h8][%mdl 32]} Qxd4 {[%emt 0:00:24]} 7. Bxb4 {[%emt 0:00:04]} Qxe4+ {[%emt 0:00:05]} 8. Ne2 {[%emt 0:00:03]} Na6 {[%emt 0:01:01][%cal Bb8a6,Ba6b4,Bb4c2][%mdl 32]} 9. Bf8 {[%emt 0:00:06]} Ne7 {[%emt 0:01:09]} 10. Bxg7 {[%emt 0:00:26]} Nb4 {[%emt 0:00:28]} 11. Bxh8 {[%emt 0:09:26]} e5 $1 {[%emt 0:02:17][%cal Oc8f5] ...Bf5! would now be deadly.} 12. Qd6 {[%emt 0:03:23]} Nc2+ {[%emt 0:19:05]} 13. Kd2 {[%emt 0:07:12][%cal Oh8f6] and Bf6! would now be decisive} Bf5 {[%emt 0:04:37]} 14. Ng3 {[%emt 0:06:50]} (14. Rd1 $2 Rd8 $19 (14... Qxc4 $2 {is the wrong capture.} 15. Ng3 $18)) 14... Qf4+ {[%emt 0:02:54]} 15. Kc3 $1 {[%emt 0:00:11]} Nd5+ {[%emt 0:03:24]} 16. cxd5 {[%emt 0:00:27]} Qd4+ {[%emt 0:00:09]} 17. Kb3 {[%emt 0:00:03]} Nxa1+ {[%emt 0:00:06]} 18. Ka3 {[%emt 0:00:03]} Nc2+ {[%emt 0:00:28]} 19. Kb3 {[%emt 0:00:02]} Na1+ {[%emt 0:00:23]} 20. Ka3 {[%emt 0:00:04]} Nc2+ {[%emt 0:00:13]} 1/2-1/2

[Event "Festival Groningen-A 2024"]
[Site "Groningen"]
[Date "2024.12.28"]
[Round "7.5"]
[White "Manish Anto Cristiano F"]
[Black "Elgersma, Onno"]
[Result "1/2-1/2"]
[ECO "C11"]
[WhiteElo "2296"]
[BlackElo "2322"]
[Annotator "RC"]
[PlyCount "76"]
[EventDate "2024.12.21"]
[EventType "swiss"]
[EventCountry "NED"]
[SourceTitle "playchess.com"]
[Source "ChessBase"]
[SourceQuality "1"]
[TimeControl "40/5400+30:1800+30"]

1. e4 {[%emt 0:00:04]} e6 {[%emt 0:11:59]} 2. d4 {[%emt 0:00:14]} d5 {[%emt 0:00:19]} 3. Nc3 {[%emt 0:00:12]} Nf6 {[%emt 0:00:27]} 4. e5 {[%emt 0:00:13]} Nfd7 {[%emt 0:00:06]} 5. f4 {[%emt 0:00:10]} c5 {[%emt 0:00:31]} 6. Nf3 {[%emt 0:00:11]} Nc6 {[%emt 0:00:05]} 7. Be3 {[%emt 0:00:11]} Be7 {[%emt 0:00:17]} 8. Be2 {[%emt 0:00:35]} a6 {[%emt 0:01:51]} 9. Qd2 {[%emt 0:00:27]} b5 {[%emt 0:03:33]} 10. a3 {[%emt 0:00:27]} O-O {[%emt 0:02:16]} 11. O-O {[%emt 0:00:11]} Qb6 {[%emt 0:07:52]} 12. Nd1 {[%emt 0:05:21]} f6 {[%emt 0:10:54]} 13. c3 {[%emt 0:16:46]} a5 {[%emt 0:02:56]} 14. exf6 {[%emt 0:04:27]} Nxf6 {[%emt 0:01:55]} 15. Nf2 {[%emt 0:00:22]} Rb8 {[%emt 0:07:09]} 16. dxc5 {[%emt 0:07:32]} Bxc5 {[%emt 0:00:08]} 17. Bxc5 {[%emt 0:01:56]} Qxc5 {[%emt 0:00:07]} 18. Nd4 {[%emt 0:12:57]} b4 {[%emt 0:05:37]} 19. axb4 {[%emt 0:02:43]} axb4 {[%emt 0:01:06]} 20. Kh1 {[%emt 0:08:17]} bxc3 {[%emt 0:03:10]} 21. bxc3 {[%emt 0:00:12]} Ne4 {[%emt 0:08:00]} 22. Nxe4 {[%emt 0:01:38]} dxe4 {[%emt 0:01:16]} 23. Bg4 {[%emt 0:06:34]} Nxd4 {[%emt 0:01:54]} 24. Qxd4 {[%emt 0:06:02]} Qxd4 {[%emt 0:01:01]} 25. cxd4 {[%emt 0:00:06]} Rb6 {[%emt 0:06:09]} 26. Rae1 {[%emt 0:05:46]} Bb7 {[%emt 0:01:17]} 27. Rb1 {[%emt 0:00:47]} Rxf4 {[%emt 0:05:27]} 28. Bxe6+ {[%emt 0:00:31]} Kh8 {[%emt 0:00:04]} 29. Kg1 {[%emt 0:08:06]} Rxf1+ {[%emt 0:01:26]} 30. Rxf1 {[%emt 0:00:06]} g6 {[%emt 0:02:35]} 31. d5 {[%emt 0:01:22]} e3 {[%emt 0:00:31]} 32. g4 {[%emt 0:04:49]} h6 {[%emt 0:04:16]} 33. h4 {[%emt 0:03:11]} e2 {[%emt 0:05:33]} 34. Rf8+ {[%emt 0:00:47]} Kg7 {[%emt 0:00:28]} 35. Rf7+ {[%emt 0:00:06]} Kh8 {[%emt 0:00:10]} 36. Kf2 {[%emt 0:01:04]} Ba6 {[%emt 0:00:12]} 37. Rf8+ {[%emt 0:00:37]} Kg7 {[%emt 0:00:09]} 38. Rf7+ {[%emt 0:00:05]} Kh8 {[%emt 0:00:04]} 1/2-1/2

[Event "Festival Groningen-A 2024"]
[Site "Groningen"]
[Date "2024.12.28"]
[Round "7.7"]
[White "Schoorl, Rob"]
[Black "Mitusov, Semen"]
[Result "0-1"]
[ECO "A17"]
[WhiteElo "2295"]
[BlackElo "2465"]
[Annotator "TA"]
[PlyCount "94"]
[EventDate "2024.12.21"]
[EventType "swiss"]
[EventCountry "NED"]
[SourceTitle "playchess.com"]
[Source "ChessBase"]
[SourceQuality "1"]
[TimeControl "40/5400+30:1800+30"]

{[%evp 17,94,11,14,20,40,46,45,35,36,39,39,48,39,35,41,16,25,14,36,20,35,25,18,0,0,0,0,0,44,43,43,31,43,0,0,0,4,0,-5,-25,0,-10,9,10,3,8,29,5,25,15,43,21,29,14,10,9,16,11,14,-51,0,0,0,0,12,0,0,0,0,-22,0,-192,-201,-176,-214,-172,-145,-973,-945]} 1. Nf3 {[%emt 0:05:30]} Nf6 {[%emt 0:00:08]} 2. g3 {[%emt 0:00:20]} b6 {[%emt 0:00:07]} 3. Bg2 {[%emt 0:00:15]} Bb7 {[%emt 0:00:04]} 4. d3 {[%emt 0:00:27]} c5 {[%emt 0:01:02]} 5. e4 {[%emt 0:01:35]} d6 {[%emt 0:00:30]} 6. O-O {[%emt 0:00:15]} e6 {[%emt 0:00:07]} 7. c4 {[%emt 0:01:06]} Be7 {[%emt 0:00:37]} 8. Nc3 {[%emt 0:02:43]} O-O {[%emt 0:00:17]} 9. b3 {[%emt 0:01:14]} a6 {[%emt 0:02:44]} 10. Bb2 {[%emt 0:00:28]} Qc7 {[%emt 0:02:26]} 11. Re1 {[%emt 0:04:44]} Nbd7 {[%emt 0:06:07]} 12. d4 {[%emt 0:00:49]} cxd4 {[%emt 0:00:05]} 13. Nxd4 {[%emt 0:00:07]} Rfe8 {[%emt 0:00:36]} 14. Qe2 {[%emt 0:05:22]} Bf8 {[%emt 0:01:15]} 15. Rac1 {[%emt 0:05:55]} Rac8 {[%emt 0:00:25]} 16. h3 {[%emt 0:11:59]} h6 {[%emt 0:01:52]} 17. Kh2 {[%emt 0:06:13]} Qb8 {[%emt 0:03:10]} 18. f4 {[%emt 0:04:59]} Nc5 {[%emt 0:12:33]} 19. b4 {[%emt 0:04:57]} Ncd7 {[%emt 0:02:17]} 20. a3 {[%emt 0:00:24]} Qc7 {[%emt 0:04:42]} 21. Qf2 {[%emt 0:09:01]} Qb8 {[%emt 0:02:19]} 22. Qe2 {[%emt 0:00:09]} Qa8 {[%emt 0:08:06]} 23. Nf3 {[%emt 0:03:36]} Rc7 {[%emt 0:02:40]} 24. Nd2 {[%emt 0:02:51]} Rec8 {[%emt 0:07:57]} 25. e5 {[%emt 0:11:04]} Bxg2 {[%emt 0:10:58]} 26. Qxg2 {[%emt 0:02:09]} Qxg2+ {[%emt 0:03:35]} 27. Kxg2 {[%emt 0:00:02]} Ne8 {[%emt 0:00:38]} 28. Nce4 {[%emt 0:01:59]} dxe5 {[%emt 0:03:26]} 29. fxe5 {[%emt 0:00:52]} f6 {[%emt 0:00:42]} 30. exf6 {[%emt 0:03:47]} gxf6 {[%emt 0:00:04]} 31. Re2 {[%emt 0:00:55]} Kf7 {[%emt 0:03:15]} 32. g4 {[%emt 0:10:43]} Be7 {[%emt 0:04:20]} (32... Nd6 $5) 33. Rf1 {[%emt 0:00:00]} Kg8 {[%emt 0:02:43]} 34. Ng3 {[%emt 0:00:00]} Ng7 {[%emt 0:00:43]} (34... Kf7 {with more complications.} 35. Rfe1 e5 36. Rf2 Nd6) 35. Nf5 {[%emt 0:00:00]} Nxf5 {[%emt 0:01:15]} 36. gxf5 {[%emt 0:00:00]} e5 {[%emt 0:00:06]} 37. Re4 {[%emt 0:00:00]} Kf7 {[%emt 0:02:24] Black is weak on the light squares} 38. Rg4 {[%emt 0:00:00]} ({White should try} 38. Rh4 $11) 38... a5 {[%emt 0:02:39]} ({Better is} 38... b5 $1 $15) 39. Bc3 $11 {[%emt 0:00:06]} axb4 {[%emt 0:00:43]} 40. axb4 {[%emt 0:00:07]} Ra8 {[%emt 0:05:05]} 41. Kf2 {[%emt 0:08:36]} Ra2 {[%emt 0:04:33] White must now prevent ...Rc2.} 42. Ke2 {[%emt 0:02:19]} Bf8 {[%emt 0:02:14]} 43. Kd3 {[%emt 0:14:00]} Nb8 {[%emt 0:10:55]} 44. b5 $2 {[%emt 0:03:33] Inhibits Nc6.} (44. Ne4 $11 {and White stays safe.}) 44... Nd7 $19 {[%emt 0:03:18]} 45. Ra1 {[%emt 0:01:27]} Nc5+ {[%emt 0:00:11]} 46. Ke2 {[%emt 0:04:33]} Na4 {[%emt 0:00:30]} 47. Rc1 $2 {[%emt 0:00:30][%mdl 8192]} (47. Rxa2 $2 {loses.} Nxc3+ 48. Kf3 Nxa2 $19) (47. Bxe5 $17 fxe5 48. Rxa2 Nc3+ 49. Ke3 Nxa2 50. Rg6) 47... Rd7 {[%emt 0:00:30]} 0-1